bitfinex/quotes_SOLUSD_20251030
["timestamp","ask_amount","ask_price","bid_price","bid_amount"]
[1761808735067,0.81,196.22,196.18,20.592]
[1761808735273,0.81,196.22,196.0,56.18002431]
[1761808735274,7.44997574,196.21,196.12,10.44882769]
[1761808735440,13.35634411,196.22,196.16,7.44997574]
[1761808735639,0.1,196.22,196.2,7.44997574]
[1761808735842,0.1,196.22,196.21,17.98997574]
[1761808736456,0.81,196.22,196.21,10.54]
[1761808736658,0.81,196.22,196.21,17.98997574]
[1761808737280,0.1,196.22,196.21,17.98997574]
[1761808737882,0.1,196.22,196.21,10.54]
[1761808738285,0.1,196.22,196.21,17.98997574]
[1761808738872,0.1,196.22,196.21,10.54]
[1761808739077,0.81,196.22,196.18,9.93098926]
[1761808739365,5.90636535,196.22,196.19,10.54]
[1761808739558,0.81,196.22,196.18,10.54]
[1761808739757,0.81,196.22,196.18,17.98997574]
[1761808740361,0.1,196.22,196.21,7.44997574]
[1761808740565,0.1,196.22,196.21,17.98997574]
[1761808742772,0.1,196.22,196.21,18.64997574]
[1761808743167,0.1,196.22,196.21,17.98997574]
[1761808743374,0.1,196.22,196.21,10.54]
[1761808743564,0.1,196.22,196.21,18.64997574]
[1761808744069,0.1,196.22,196.18,10.29856364]
[1761808744281,0.81,196.22,196.18,7.44997574]
[1761808744484,5.90634153,196.22,196.16,30.38082769]
[1761808744677,7.44997574,196.21,196.17,10.54]
[1761808744998,8.15997574,196.21,196.18,10.54]
[1761808745164,0.71,196.2,196.18,10.54]
[1761808746568,0.71,196.2,196.18,17.98997574]
[1761808746763,0.1,196.22,196.19,7.44997574]
[1761808746988,0.1,196.22,196.21,7.44997574]
[1761808747290,0.81,196.22,196.21,10.54]
[1761808748163,0.1,196.22,196.21,34.1872032]
[1761808748594,0.1,196.22,196.21,27.920965]
[1761808748887,0.1,196.22,196.21,33.01754519]
[1761808749062,0.1,196.22,196.21,33.67754519]
[1761808750006,0.1,196.22,196.21,17.98997574]
[1761808750492,0.1,196.22,196.21,29.09062301]
[1761808750672,0.1,196.22,196.21,28.580965]
[1761808750881,0.1,196.22,196.21,27.920965]
[1761808751093,0.1,196.22,196.21,28.580965]
[1761808751678,0.1,196.22,196.21,33.67754519]
[1761808754973,0.1,196.22,196.21,9.93098926]
[1761808755185,0.1,196.22,196.21,28.47880343]
[1761808755696,0.1,196.22,196.21,28.620965]
[1761808755872,0.1,196.22,196.21,29.13062301]
[1761808756376,0.1,196.22,196.21,27.920965]
[1761808756898,0.1,196.22,196.21,27.77880343]
[1761808757196,0.1,196.22,196.21,33.71754519]
[1761808758476,0.1,196.22,196.21,54.30954519]
[1761808759806,0.1,196.22,196.21,53.60954519]
[1761808760376,0.1,196.22,196.21,54.30954519]
[1761808760815,0.1,196.22,196.21,46.15956945]
[1761808760976,0.1,196.22,196.21,54.30954519]
[1761808763084,0.1,196.22,196.21,10.52]
[1761808763085,0.77,196.22,196.21,10.52]
[1761808763293,0.1,196.22,196.21,17.96997574]
[1761808763488,0.1,196.22,196.21,7.44997574]
[1761808763695,0.1,196.22,196.19,20.592]
[1761808763696,0.77,196.22,196.2,7.44997574]
[1761808763878,0.77,196.22,196.19,7.44997574]
[1761808764078,0.77,196.22,196.2,10.52]
[1761808764298,0.77,196.22,196.2,17.96997574]
[1761808764703,5.86634256,196.22,196.2,10.52]
[1761808765080,0.67,196.21,196.2,10.52]
[1761808765591,0.67,196.21,196.2,17.96997574]
[1761808765987,0.67,196.21,196.2,10.52]
[1761808766291,0.67,196.21,196.2,17.96997574]
[1761808766498,0.67,196.21,196.2,10.52]
[1761808767008,5.76658019,196.21,196.2,10.52]
[1761808767791,5.76658019,196.21,196.17,7.44997574]
[1761808768005,0.67,196.2,196.17,10.52]
[1761808768299,0.67,196.2,196.17,17.96997574]
[1761808768491,0.67,196.2,196.17,10.52]
[1761808768692,0.67,196.2,196.17,17.96997574]
[1761808768889,0.67,196.2,196.17,10.52]
[1761808769090,5.76691139,196.2,196.17,10.52]
[1761808769504,0.67,196.19,196.17,17.96997574]
[1761808769883,0.67,196.19,196.17,10.52]
[1761808770310,0.1,196.22,196.18,7.44997574]
[1761808770484,0.67,196.19,196.18,7.44997574]
[1761808770684,5.19633883,196.22,196.18,7.44997574]
[1761808770883,0.67,196.21,196.18,7.44997574]
[1761808771218,0.67,196.21,196.17,17.96997574]
[1761808771401,0.67,196.21,196.17,15.51495886]
[1761808771590,0.67,196.21,196.17,10.52]
[1761808772307,10.09179881,196.2,196.17,10.52]
[1761808772511,5.09683995,196.2,196.17,10.52]
[1761808772811,0.67,196.19,196.17,10.52]
[1761808773012,5.66495886,196.19,196.13,4.99495886]
[1761808773192,5.66495886,196.19,196.14,10.52]
[1761808773400,4.99495886,196.15,196.04,12.8408796]
[1761808773586,4.99495886,196.14,196.08,4.99495886]
[1761808773784,4.99495886,196.14,196.09,10.52]
[1761808773983,0.67,196.13,196.09,10.52]
[1761808774384,0.67,196.13,196.1,4.99495886]
[1761808774603,0.67,196.13,196.09,10.52]
[1761808774807,0.67,196.13,196.1,4.99495886]
[1761808775087,4.99495886,196.18,196.12,4.99495886]
[1761808775295,0.67,196.13,196.12,4.99495886]
[1761808775513,0.67,196.13,196.12,10.52]
[1761808776817,5.76865905,196.13,196.12,10.52]
[1761808777035,10.76361791,196.13,196.07,4.99495886]
[1761808777195,0.67,196.12,196.08,10.52]
[1761808778303,0.67,196.12,196.04,5.24311748]
[1761808778304,10.09413789,196.11,196.04,4.99495886]
[1761808778504,10.09413789,196.11,196.07,10.52]
[1761808778685,10.09413789,196.11,196.05,4.99495886]
[1761808778686,0.67,196.1,196.06,10.52]
[1761808778886,0.67,196.1,196.06,15.51495886]
[1761808779399,0.67,196.1,196.06,10.52]
[1761808780215,0.67,196.13,196.08,4.99495886]
[1761808780591,5.76872039,196.13,196.08,4.99495886]
[1761808781115,0.67,196.12,196.08,4.99495886]
[1761808782310,5.76896861,196.12,196.08,4.99495886]
[1761808782710,0.67,196.11,196.07,4.99495886]
[1761808783317,0.67,196.11,196.08,4.99495886]
[1761808784218,0.67,196.11,196.06,10.52]
[1761808784395,10.09439792,196.1,196.01,25.69353776]
[1761808784727,5.09943906,196.1,196.05,4.99495886]
[1761808784897,0.67,196.09,196.05,4.99495886]
[1761808785228,0.67,196.09,196.03,4.99495886]
[1761808785422,0.67,196.11,196.08,4.99495886]
[1761808786990,0.67,196.11,196.07,15.51495886]
[1761808787194,4.99495886,196.18,196.08,0.66]
[1761808787436,0.67,196.15,196.1,4.99495886]
[1761808787637,0.67,196.15,196.11,4.99495886]
[1761808787802,0.67,196.15,196.12,4.99495886]
[1761808788533,5.76814273,196.15,196.12,4.99495886]
[1761808788917,0.67,196.14,196.12,4.99495886]
[1761808789113,0.67,196.14,196.11,10.54]
[1761808789310,0.67,196.14,196.12,4.99495886]
[1761808789517,0.67,196.17,196.13,4.99495886]
[1761808789739,0.67,196.17,196.14,4.99495886]
[1761808790311,0.67,196.17,196.13,4.99495886]
[1761808790847,5.76765716,196.17,196.13,4.99495886]
[1761808791237,0.67,196.16,196.13,4.99495886]
[1761808791745,0.67,196.16,196.12,4.99495886]
[1761808792344,0.67,196.16,196.11,10.54]
[1761808792514,5.76796702,196.16,196.12,4.99495886]
[1761808793045,0.72,196.15,196.11,4.99495886]
[1761808793343,0.72,196.15,196.11,12.51920727]
[1761808794438,5.81817607,196.15,196.11,12.51920727]
[1761808794824,0.72,196.14,196.11,12.51920727]
[1761808795222,0.72,196.14,196.11,10.52]
[1761808795434,0.72,196.14,196.11,12.51920727]
[1761808796331,5.09817607,196.15,196.12,1.99920727]
[1761808796534,1.99920727,196.19,196.11,10.52]
[1761808796535,5.09773194,196.17,196.13,1.99920727]
[1761808796845,5.81773194,196.17,196.14,1.99920727]
[1761808797052,5.81773194,196.17,196.12,1.99920727]
[1761808797053,0.72,196.16,196.12,1.99920727]
[1761808797620,0.72,196.16,196.11,10.52]
[1761808798664,17.84348711,196.15,196.09,1.99920727]
[1761808798833,1.99920727,196.14,196.08,12.64136884]
[1761808799033,2.71920727,196.14,196.08,12.64136884]
[1761808799245,0.72,196.13,196.08,12.64136884]
[1761808799836,5.09891902,196.12,196.08,1.99920727]
[1761808800034,5.09891902,196.12,196.08,12.49920727]
[1761808800247,0.72,196.11,196.08,12.49920727]
[1761808800436,0.72,196.11,196.09,1.99920727]
[1761808801043,5.8186903,196.13,196.09,1.99920727]
[1761808801346,0.72,196.16,196.12,1.99920727]
[1761808801545,0.72,196.16,196.13,1.99920727]
[1761808801741,0.72,196.16,196.12,1.99920727]
[1761808801942,5.81798863,196.16,196.1,0.67]
[1761808802152,5.81798863,196.16,196.09,15.59946486]
[1761808802153,5.81798863,196.16,196.11,1.99920727]
[1761808802352,5.81798863,196.16,196.12,1.99920727]
[1761808802730,0.72,196.18,196.13,1.99920727]
[1761808803057,0.72,196.2,196.16,1.99920727]
[1761808803230,0.72,196.19,196.16,1.99920727]
[1761808803425,0.72,196.19,196.13,10.5]
[1761808803426,0.72,196.19,196.15,1.99920727]
[1761808803843,5.09735956,196.18,196.15,1.99920727]
[1761808804048,0.72,196.19,196.15,1.99920727]
[1761808804452,5.81713072,196.19,196.15,1.99920727]
[1761808804936,2.71920727,196.18,196.09,0.67]
[1761808805258,2.71920727,196.17,196.1,1.99920727]
[1761808805463,0.72,196.17,196.12,1.99920727]
[1761808805766,2.71920727,196.16,196.09,12.49920727]
[1761808805947,5.09813917,196.15,196.09,12.49920727]
[1761808806149,5.81813917,196.15,196.1,1.99920727]
[1761808806344,0.72,196.14,196.1,1.99920727]
[1761808806761,0.72,196.14,196.09,12.49920727]
[1761808807064,0.72,196.14,196.1,1.99920727]
[1761808807358,0.72,196.14,196.09,11.17]
[1761808807583,0.72,196.14,196.1,1.99920727]
[1761808807773,0.72,196.14,196.09,10.5]
[1761808807980,5.09865905,196.13,196.09,12.49920727]
[1761808808151,5.09865905,196.13,196.1,1.99920727]
[1761808808462,0.72,196.17,196.12,1.99920727]
[1761808808847,5.81761941,196.17,196.12,1.99920727]
[1761808809253,0.72,196.16,196.12,1.99920727]
[1761808810468,5.81809569,196.16,196.12,1.99920727]
[1761808811270,5.81809569,196.16,196.11,2.66920727]
[1761808811664,5.09809569,196.16,196.11,1.99920727]
[1761808811867,0.72,196.15,196.11,1.99920727]
[1761808812463,5.81836616,196.15,196.09,10.5]
[1761808812770,5.81836616,196.15,196.11,1.99920727]
[1761808813076,0.72,196.14,196.09,10.5]
[1761808813253,0.72,196.14,196.11,4.99810294]
[1761808813457,5.81854434,196.14,196.11,4.99810294]
[1761808813657,5.81854434,196.14,196.09,4.99810294]
[1761808813876,0.69,196.13,196.09,15.49810294]
[1761808814066,5.09854434,196.14,196.09,16.16810294]
[1761808814267,5.68810294,196.13,196.04,21.262]
[1761808814578,4.99810294,196.11,196.04,10.5]
[1761808814875,4.99810294,196.11,196.05,4.99810294]
[1761808815051,0.69,196.1,196.05,4.99810294]
[1761808815453,5.78952184,196.1,196.06,4.99810294]
[1761808815955,5.09952184,196.1,196.06,4.99810294]
[1761808816173,0.69,196.1,196.06,4.99810294]
[1761808817357,5.7894623,196.1,196.06,4.99810294]
[1761808817865,0.69,196.09,196.06,4.99810294]
[1761808818066,0.69,196.09,196.05,4.99810294]
[1761808818462,0.69,196.09,196.05,5.66810294]
[1761808820353,0.69,196.17,196.08,4.99810294]
[1761808820557,0.69,196.17,196.13,4.99810294]
[1761808820752,0.69,196.17,196.12,4.99810294]
[1761808822074,5.68810294,196.17,196.12,4.99810294]
[1761808822604,5.09787928,196.16,196.12,4.99810294]
[1761808822773,5.80787928,196.16,196.12,4.99810294]
[1761808823083,0.71,196.15,196.12,4.99810294]
[1761808823494,5.80836769,196.15,196.12,4.99810294]
[1761808824188,5.80836769,196.15,196.11,4.99810294]
[1761808824389,5.80836769,196.15,196.1,0.67]
[1761808824588,5.80836769,196.15,196.11,4.99810294]
[1761808824793,5.09836769,196.15,196.11,4.99810294]
[1761808825107,0.71,196.14,196.11,4.99810294]
[1761808825585,5.09813917,196.15,196.12,4.99810294]
[1761808825985,5.80813917,196.15,196.12,4.99810294]
[1761808826588,5.80813917,196.15,196.11,0.69]
[1761808826791,5.80813917,196.15,196.12,4.99810294]
[1761808826983,5.09813917,196.15,196.12,4.99810294]
[1761808827704,5.09787928,196.16,196.12,4.99810294]
[1761808827884,0.71,196.15,196.11,10.5]
[1761808828082,5.09787928,196.16,196.12,4.99810294]
[1761808828290,5.80787928,196.16,196.12,4.99810294]
[1761808828595,5.80787928,196.16,196.12,5.68810294]
[1761808828796,0.71,196.15,196.11,10.5]
[1761808828980,5.80787928,196.16,196.11,16.18810294]
[1761808829178,5.09787928,196.16,196.11,16.18810294]
[1761808829381,0.71,196.15,196.11,11.19]
[1761808829900,5.0983991,196.14,196.11,16.18810294]
[1761808830307,5.0983991,196.14,196.11,15.49810294]
[1761808830799,5.0983991,196.14,196.11,16.18810294]
[1761808830982,5.0983991,196.14,196.11,10.5]
[1761808831380,5.0983991,196.14,196.11,15.49810294]
[1761808831608,5.8083991,196.14,196.11,15.49810294]
[1761808832099,0.71,196.13,196.1,15.49810294]
[1761808832291,5.0983991,196.14,196.1,15.49810294]
[1761808832496,5.0983991,196.14,196.1,10.5]
[1761808832804,5.8083991,196.14,196.1,15.49810294]
[1761808833001,5.8083991,196.14,196.1,11.19]
[1761808833206,5.8083991,196.14,196.1,5.68810294]
[1761808833392,5.8083991,196.14,196.1,18.63551381]
[1761808834202,5.09811736,196.16,196.12,7.44551381]
[1761808834510,5.80811736,196.16,196.12,8.13551381]
[1761808834878,5.80811736,196.16,196.1,10.5]
[1761808834879,0.71,196.15,196.1,10.5]
[1761808835080,0.71,196.15,196.11,7.44551381]
[1761808835301,0.71,196.15,196.11,3.12386318]
[1761808835583,0.71,196.15,196.1,11.19]
[1761808835794,0.71,196.15,196.1,14.31386318]
[1761808836393,5.0983991,196.14,196.1,14.31386318]
[1761808837113,5.8083991,196.14,196.1,14.31386318]
[1761808837807,5.8083991,196.14,196.11,3.12386318]
[1761808838592,0.71,196.13,196.07,0.69]
[1761808838892,3.83386318,196.13,196.08,10.5]
[1761808839301,3.83386318,196.13,196.09,0.69]
[1761808839501,5.09891902,196.12,196.09,0.69]
[1761808839893,0.71,196.11,196.06,3.12386318]
[1761808840091,3.83386318,196.11,196.05,3.12386318]
[1761808840317,3.83386318,196.1,196.04,13.62386318]
[1761808840789,3.12386318,196.08,196.04,10.5]
[1761808841105,3.83386318,196.09,196.04,10.5]
[1761808841308,0.71,196.08,196.04,10.5]
[1761808841510,0.71,196.08,196.04,13.62386318]
[1761808841817,5.81019156,196.08,196.04,14.31386318]
[1761808842318,0.71,196.07,196.02,0.69]
[1761808842491,0.71,196.07,195.99,8.61919038]
[1761808842492,3.12386318,196.04,195.99,0.2]
[1761808842694,3.12386318,196.02,195.99,0.2]
[1761808843106,0.71,196.01,195.99,0.2]
[1761808843313,3.83386318,196.01,195.99,0.2]
[1761808843731,5.81204081,196.0,195.99,0.2]
[1761808850827,8.93590399,196.0,195.99,0.2]
[1761808854720,21.69100603,196.0,195.96,6.89098999]
[1761808854924,3.12386318,195.97,195.96,6.89098999]
[1761808855329,3.81386318,195.97,195.96,6.89098999]
[1761808855840,8.91668504,195.97,195.96,6.89098999]
[1761808857527,5.79282186,195.97,195.96,6.89098999]
[1761808858040,8.91668504,195.97,195.96,6.89098999]
[1761808859151,5.79282186,195.97,195.96,6.89098999]
[1761808859525,5.10255722,195.99,195.96,10.01485317]
[1761808859720,5.79255722,195.99,195.96,10.01485317]
[1761808859930,18.54831006,195.99,195.96,6.89098999]
[1761808860220,0.69,195.98,195.96,6.89098999]
[1761808861123,5.10282186,195.97,195.96,6.89098999]
[1761808862238,5.10230113,195.99,195.96,7.60098999]
[1761808862420,5.10230113,195.99,195.97,3.12386318]
[1761808862746,5.10230113,195.99,195.96,6.89098999]
[1761808862940,5.10230113,195.99,195.96,10.01485317]
[1761808863731,5.79230113,195.99,195.96,10.01485317]
[1761808864031,5.10230113,195.99,195.96,10.72485317]
[1761808864236,5.10230113,195.99,195.97,3.83386318]
[1761808864433,5.10230113,195.99,195.97,3.12386318]
[1761808865441,5.10204081,196.0,195.96,10.01485317]
[1761808865743,5.10204081,196.0,195.96,10.72485317]
[1761808866065,5.79176161,196.02,195.98,3.12386318]
[1761808866364,0.69,196.05,196.01,3.12386318]
[1761808866568,0.69,196.11,196.01,3.12386318]
[1761808866856,3.81386318,196.11,196.02,0.71]
[1761808867023,3.81386318,196.11,196.06,3.12386318]
[1761808867024,0.69,196.11,196.06,3.12386318]
[1761808867465,5.09943906,196.1,196.07,0.71]
[1761808867630,5.09943906,196.1,196.08,3.12386318]
[1761808867824,0.69,196.13,196.09,3.12386318]
[1761808868024,0.1,196.22,196.12,3.12386318]
[1761808868223,0.69,196.21,196.18,3.12386318]
[1761808868643,0.69,196.21,196.17,3.12386318]
[1761808868846,0.69,196.21,196.14,0.71]
[1761808868847,0.69,196.21,196.18,3.12386318]
[1761808869049,5.19636463,196.22,196.18,3.12386318]
[1761808869532,5.88636463,196.22,196.18,3.12386318]
[1761808870029,0.1,196.22,196.19,3.12386318]
[1761808870241,0.1,196.22,196.2,3.12386318]
[1761808870450,0.1,196.22,196.19,0.71]
[1761808870451,0.1,196.22,196.21,3.12386318]
[1761808870635,0.1,196.22,196.21,3.83386318]
[1761808872072,0.1,196.22,196.21,0.71]
[1761808872556,0.1,196.22,196.21,3.83386318]
[1761808873053,5.19632045,196.22,196.21,3.83386318]
[1761808873227,5.19632045,196.22,196.21,0.71]
[1761808873429,5.19632045,196.22,196.18,0.71]
[1761808873740,5.19632045,196.22,196.2,3.12386318]
[1761808874129,0.1,196.22,196.2,3.12386318]
[1761808874353,0.1,196.22,196.2,3.79386318]
[1761808875132,0.1,196.22,196.2,3.12386318]
[1761808875327,0.1,196.22,196.2,0.67]
[1761808875534,0.1,196.22,196.2,3.79386318]
[1761808875732,0.1,196.22,196.2,0.67]
[1761808875939,5.19632786,196.22,196.2,3.79386318]
[1761808876452,0.1,196.22,196.21,3.79386318]
[1761808877446,0.1,196.22,196.21,8.89044337]
[1761808878036,0.1,196.22,196.21,29.83109064]
[1761808878546,0.1,196.22,196.21,50.42309064]
[1761808878747,165.5,196.36,196.21,68.25853321]
[1761808878928,0.77,196.36,196.31,3.12386318]
[1761808879557,0.1,196.36,196.35,3.12386318]
[1761808879931,0.1,196.36,196.34,3.12386318]
[1761808880126,0.1,196.36,196.32,0.67]
[1761808880469,0.1,196.36,196.29,0.67]
[1761808880470,21.71832409,196.36,196.29,0.67]
[1761808880626,3.12386318,196.35,196.28,3.12386318]
[1761808880831,3.79386318,196.35,196.28,3.12386318]
[1761808881032,0.67,196.35,196.29,3.12386318]
[1761808881569,17.82621981,196.34,196.29,3.12386318]
[1761808882268,18.49621981,196.34,196.29,3.79386318]
[1761808882437,0.67,196.33,196.29,3.79386318]
[1761808882639,17.82803585,196.32,196.28,3.12386318]
[1761808882941,3.12386318,196.3,196.24,3.12386318]
[1761808883444,3.12386318,196.27,196.2,0.66]
[1761808883647,17.82803585,196.32,196.16,45.50668945]
[1761808883648,3.12386318,196.25,196.19,3.12386318]
[1761808884080,0.72,196.24,196.18,3.12386318]
[1761808884371,3.84386318,196.24,196.17,0.66]
[1761808884534,17.8362126,196.23,196.17,3.78386318]
[1761808884733,18.5562126,196.23,196.17,3.78386318]
[1761808885577,18.5562126,196.23,196.18,3.12386318]
[1761808885751,18.5562126,196.23,196.2,3.12386318]
[1761808885752,17.8362126,196.23,196.2,3.12386318]
[1761808886248,17.8362126,196.23,196.19,3.12386318]
[1761808886676,3.12386318,196.25,196.2,0.66]
[1761808886877,17.83348618,196.26,196.22,3.12386318]
[1761808887081,17.83348618,196.26,196.23,3.12386318]
[1761808887259,17.83348618,196.26,196.23,7.43637919]
[1761808887463,17.83348618,196.26,196.22,7.43637919]
[1761808887769,17.83348618,196.26,196.21,0.66]
[1761808887770,17.83348618,196.26,196.21,8.09637919]
[1761808887981,0.72,196.25,196.21,7.43637919]
[1761808888770,17.83530369,196.24,196.2,7.43637919]
[1761808889175,17.83530369,196.24,196.2,8.09637919]
[1761808889474,18.55530369,196.24,196.19,7.43637919]
[1761808889681,18.55530369,196.24,196.2,7.43637919]
[1761808890093,0.72,196.23,196.19,7.43637919]
[1761808890396,0.72,196.23,196.18,0.66]
[1761808890397,0.72,196.23,196.18,8.09637919]
[1761808890576,0.72,196.23,196.18,0.66]
[1761808890782,0.72,196.23,196.19,7.43637919]
[1761808890967,25.27168288,196.24,196.19,7.43637919]
[1761808891168,0.72,196.23,196.19,7.43637919]
[1761808891468,17.83530369,196.24,196.2,7.43637919]
[1761808891664,17.83530369,196.24,196.2,8.09637919]
[1761808892010,0.72,196.23,196.17,10.48]
[1761808892183,8.15637919,196.23,196.17,7.43637919]
[1761808892367,0.72,196.23,196.18,7.43637919]
[1761808892567,0.72,196.23,196.16,25.79823636]
[1761808892806,17.83530369,196.24,196.21,7.43637919]
[1761808892807,5.09580105,196.24,196.21,7.43637919]
[1761808892976,12.53166095,196.26,196.21,7.43637919]
[1761808893376,0.72,196.25,196.21,4.99332154]
[1761808893600,5.71332154,196.25,196.2,4.99332154]
[1761808893987,0.72,196.24,196.19,5.65332154]
[1761808894586,0.72,196.24,196.2,4.99332154]
[1761808895095,5.09606074,196.23,196.2,5.65332154]
[1761808895300,5.09606074,196.23,196.2,4.99332154]
[1761808895476,5.09606074,196.23,196.18,0.66]
[1761808895681,5.09606074,196.23,196.2,4.99332154]
[1761808896096,5.09606074,196.23,196.18,0.66]
[1761808896308,5.09606074,196.23,196.2,4.99332154]
[1761808896993,18.55570644,196.24,196.2,4.99332154]
[1761808897726,23.54902798,196.24,196.19,4.99332154]
[1761808898073,17.83570644,196.24,196.2,0.66]
[1761808898901,5.09632045,196.22,196.19,4.99332154]
[1761808899400,5.81632045,196.22,196.18,4.99332154]
[1761808899607,5.81632045,196.22,196.18,5.65332154]
[1761808899986,5.09632045,196.22,196.18,5.65332154]
[1761808900191,5.09632045,196.22,196.18,4.99332154]
[1761808900388,17.8362126,196.23,196.19,0.66]
[1761808900703,17.8362126,196.23,196.19,5.65332154]
[1761808901380,18.5562126,196.23,196.19,5.65332154]
[1761808901788,5.71332154,196.25,196.2,5.65332154]
[1761808902003,5.71332154,196.24,196.2,0.66]
[1761808902208,4.99332154,196.24,196.2,0.66]
[1761808903017,5.09606074,196.23,196.2,0.66]
[1761808903217,5.09606074,196.23,196.2,5.65332154]
[1761808904504,17.835569,196.24,196.2,0.66]
[1761808905592,18.555569,196.24,196.18,15.97745423]
[1761808905792,18.555569,196.24,196.19,4.99332154]
[1761808906007,18.555569,196.24,196.19,5.65332154]
[1761808906206,18.555569,196.24,196.2,0.66]
[1761808906922,18.555569,196.24,196.19,4.99332154]
[1761808907119,18.555569,196.24,196.19,5.65332154]
[1761808907288,18.555569,196.24,196.19,2.6575901]
[1761808907591,7.9903604,196.3,196.17,15.31745423]
[1761808907592,5.09502216,196.27,196.2,11.14]
[1761808907796,5.09502216,196.27,196.23,1.9975901]
[1761808908018,5.09502216,196.27,196.24,0.66]
[1761808908901,5.09476258,196.28,196.24,0.66]
[1761808909507,17.83166904,196.28,196.24,13.1375901]
[1761808909815,17.83166904,196.28,196.25,0.66]
[1761808910114,5.09476258,196.28,196.25,0.66]
[1761808911817,14.73393638,196.29,196.25,0.66]
[1761808912704,19.82843941,196.29,196.25,0.66]
[1761808913017,5.09450303,196.29,196.25,2.6575901]
[1761808913417,5.09450303,196.29,196.26,0.66]
[1761808913820,17.8307606,196.29,196.26,0.66]
[1761808915238,18.4907606,196.29,196.25,1.9975901]
[1761808915612,17.8307606,196.29,196.25,2.6575901]
[1761808916208,17.8307606,196.29,196.26,0.66]
[1761808916525,5.09450303,196.29,196.26,0.66]
[1761808917232,2.6575901,196.28,196.24,20.96]
[1761808917417,1.9975901,196.27,196.24,10.48]
[1761808917617,1.9975901,196.28,196.24,11.14]
[1761808917812,2.6575901,196.28,196.24,11.14]
[1761808918718,5.09502216,196.27,196.24,11.14]
[1761808920526,5.09502216,196.27,196.2,0.14216157]
[1761808920712,5.09502216,196.27,196.23,2.6575901]
[1761808920912,5.09502216,196.27,196.23,13.1375901]
[1761808921123,5.75502216,196.27,196.23,13.1375901]
[1761808921522,1.9975901,196.24,196.15,0.66]
[1761808921725,1.9975901,196.21,196.16,10.62216157]
[1761808921919,0.66,196.25,196.16,10.62216157]
[1761808922219,1.9975901,196.21,196.16,13.27975167]
[1761808922621,5.09683995,196.2,196.16,13.27975167]
[1761808922827,5.09683995,196.2,196.17,0.66]
[1761808923208,5.09683995,196.2,196.19,0.14216157]
[1761808923939,5.09683995,196.2,196.16,1.9975901]
[1761808924157,5.09683995,196.2,196.14,10.48]
[1761808924158,0.66,196.19,196.14,10.48]
[1761808924357,1.9975901,196.18,196.14,10.48]
[1761808924655,0.66,196.19,196.13,10.48]
[1761808924656,1.9975901,196.15,196.13,10.48]
[1761808924855,1.9975901,196.16,196.13,10.48]
[1761808925271,0.66,196.15,196.13,10.48]
[1761808925973,5.0983991,196.14,196.13,10.48]
[1761808926188,25.48000019,196.24,196.14,0.66]
[1761808926189,5.09711974,196.19,196.14,0.66]
[1761808926346,5.75688525,196.2,196.15,1.9975901]
[1761808926670,1.9975901,196.17,196.1,15.32214816]
[1761808926965,1.9975901,196.14,196.09,1.9975901]
[1761808927352,2.6575901,196.13,196.08,10.48]
[1761808927559,1.9975901,196.12,196.08,10.48]
[1761808927757,2.6575901,196.12,196.08,10.48]
[1761808927959,7.09702916,196.1,196.06,10.48]
[1761808928467,7.09702916,196.1,196.03,1.9975901]
[1761808928468,2.6575901,196.09,196.03,1.9975901]
[1761808928677,2.6575901,196.09,196.01,1.9975901]
[1761808928678,1.9975901,196.07,196.01,1.9975901]
[1761808928978,1.9975901,196.07,196.03,10.48]
[1761808929155,2.6575901,196.07,196.03,10.48]
[1761808929472,2.6575901,196.06,196.02,10.48]
[1761808929675,0.66,196.06,196.02,10.48]
[1761808929890,1.9975901,196.03,195.98,10.68]
[1761808930053,7.09881253,196.04,195.98,12.6775901]
[1761808930278,5.76122243,196.04,195.98,11.34]
[1761808930473,5.76122243,196.04,196.0,1.9975901]
[1761808930674,12.75170864,196.06,196.0,1.9975901]